Workbook

Sheet Cover
A5: Tasmanian Networks Pty Ltd
A7: ABN 24 167 357 299
A13: Transmission Network Service Provider
A14: Regulatory Financial Statements
A19: 2016-17

Sheet Index
B2: INFORMATION DISCLOSURE REQUIREMENTS
C4: TABLE OF CONTENTS
C5: for the year ended 30 June 2017
B7: TYPE | C7: PROFORMA STATEMENT | D7: STATEMENT NUMBER | E7: PAGE
B9: Accounting Policies | C9: Accounting Policies | D9: ACC Pol | E9: 3
B11: Regulatory Financial Statements
C12: Income Statement | D12: RFS Inc | E12: 4
B14: Disaggregation Statements
C15: Income Statement | D15: DISAGG Inc | E15: 5
B17: Workpapers supporting the Disaggregation Statements:
C18: Operations and maintenance expenditure | D18: DISAGG Opex | E18: 6
C19: Causal allocations | D19: DISAGG Aloc1 | E19: 7
C20: Non-causal allocations | D20: DISAGG Aloc2 | E20: 8
B22: Prescribed Transmission Services
C23: Regulatory adjustment journals | D23: PTS Adj | E23: 9
C25: Price reduction/recovery | D25: PTS PriceRedn | E25: 10
C27: Discount | D27: PTS Disc | E27: 11
C29: Revenue analysis | D29: PTS Rev | E29: 12
B31: Asset schedules and supporting papers:
B32: Prescribed Transmission Services | C32: Asset Aging Schedule | D32: PTS Asset Aging | E32: 13
B34: Provisions Schedules:
B35: Disaggregation Statements | C35: Provisions Summary | D35: DISAGG ProvSum | E35: 14
C36: Provisions Reconciliation | D36: PTS ProvRec | E36: 15
B38: Other Information
C39: Related Party Transactions | D39: Inf Rel Part Trans | E39: 16
C40: Revenue Reconciliation | D40: Inf Rev Rec | E40: 17
B42: Non-financial Schedules
C43: Current Map of the Network | D43: NFS Curr Map Netw | E43: na
B45: Historic Operating Expenditure (Opex)
C46: Historic Opex by Category - Summary | D46: HOE Sum | E46: 18
C47: Historic Opex by Category 2nd FY | D47: HOE 2ndt FY | E47: 19
B49: Historic Capital Expenditure (Capex)
C50: Historic Capex by Category | D50: HCE Cat | E50: 20
C51: Historic Capex by Asset Class | D51: HCE Ass Cls | E51: 21
C52: Historic Capex - Network | D52: HCE Netw | E52: 23
C53: Historic Capex - Non-Network | D53: HCE Non Netw | E53: 24
B55: Directors Responsibility Statement
C56: Directors Responsibility Statement | D56: DRS | E56: 25
B58: © Tasmanian Networks Pty Ltd 2017
B59: This work is copyright. Apart from any use as permitted under the Copyright Act 1968, no part of the work may be reproduced by any process without permission from Tasmanian Networks Pty Ltd.
B61: Tasmanian Networks Pty Ltd
B62: ABN 24 167 357 299
B64: Registered office | C64: 1-7 Maria Street
B65: and postal address | C65: Lenah Valley TAS 7008 Australia
B66: Telephone | C66: 1300 137 008
B67: Internet | C67: www.tasnetworks.com.au

Sheet ACC Pol
A2: SUMMARY OF SIGNIFICANT ACCOUNTING POLICIES
A4: The accounting policies adopted for TasNetworks' Transmission Network Service Provider Regulatory Financial Statements are the same as those identified in our audited financial report for the year ended 30 June 2017 with the following exceptions:
A6: (a) | B6: Property, plant and equipment
A8: Depreciation is calculated using the effective life of the asset that was provided in the most recent regulatory determination.
A10: Proceeds received on the disposal of assets are deducted from the written down value of the asset. Any remaining balance of the asset is depreciated over the remaining effective life of the asset. Any excess is recognised as income in the year it is received.
A12: (b) | B12: Customer contributions
A14: Customer contributions received for the construction of a prescribed asset are deducted off the cost of the asset for regulatory purposes as opposed to being treated as revenue under the accounting standards.

Sheet RFS Inc
A2: INCOME STATEMENT - PRESCRIBED TRANSMISSION SERVICES
A7: for the period ended: 30 June 2017
A9: Account code or reference to Account Code | C9: Description | D9: Disaggregation Statement - Prescribed Transmission Services | E9: Journal number | F9: Regulatory adjustments | G9: Regulatory financial statements | H9: Support reference
D10: $'000 | F10: $'000 | G10: $'000
F11: DR/(CR)
B13: Network charges | D13: ='DISAGG Inc'!F12 -> 175101.9893 | G13: =D13-F13 -> 175101.9893
B14: Gross proceeds from sale of assets | D14: ='DISAGG Inc'!F14 -> 20 | G14: =D14-F14 -> 20
B15: Other revenue (analysed as appropriate) | D15: 0 | G15: 0
B17: Total Revenue | D17: =SUM(D13:D16) -> 175121.9893 | F17: =SUM(F12:F16) -> 0 | G17: =SUM(G12:G16) -> 175121.9893
B20: Opex costs
B21: - | C21: Field operations and maintenance | D21: =-'DISAGG Inc'!F23 -> 15150.01532 | G21: =D21+F21 -> 15150.01532
B22: - | C22: Transmission services | D22: =-'DISAGG Inc'!F25 -> 5561.544056 | G22: =D22+F22 -> 5561.544056
B23: - | C23: Customer and Asset management | D23: =-'DISAGG Inc'!F26 -> 1157.874677 | G23: 1157.874677
B24: - | C24: Corporate | D24: =-'DISAGG Inc'!F27 -> 7307.597915 | G24: 7307.597915
B25: - | C25: Transmission operations | D25: =-'DISAGG Inc'!F28 -> 2123.199793 | G25: 2123.199793
B26: - | C26: NCIPAP | D26: =-'DISAGG Inc'!F29 -> 0 | G26: 0
B27: Self Insurance | D27: 0 | E27: 77 | F27: ='PTS Adj'!D18 -> 747.9596225 | G27: =D27+F27 -> 747.9596225
B28: Depreciation | D28: =-'DISAGG Inc'!F31 -> 69614.42638 | E28: 78 | F28: =-'PTS Adj'!E24 -> -8310 | G28: =D28+F28 -> 61304.42638
B29: Book value of assets disposed | D29: =-'DISAGG Inc'!F33 -> 14.78723 | F29: =-'PTS Adj'!E29 -> 0 | G29: =D29+F29 -> 14.78723
G30: =D30-F30 -> 0
B31: Earnings before Interest and Tax (EBIT) | D31: =D17-SUM(D18:D30) -> 74192.54392 | F31: =SUM(F18:F30) -> -7562.040378 | G31: =G17-SUM(G18:G30) -> 81754.5843
B35: Taxation | D35: =D31*0.3 -> 22257.76318 | F35: =F31*0.3 -> -2268.612113 | G35: =G31*0.3 -> 24526.37529
A38: Note:
A39: In addition it is mandatory to produce for each cost or revenue item that has been allocated to the Prescribed Services Segment a supporting workpaper that includes the following:
A40: a) the amounts that have been directly attributed to the Prescribed Services Segment
A41: b) the amounts that have been allocated to each Prescribed Services Segment
A42: c) a description of the allocation basis
A43: d) the numeric quantity of each allocator.

Sheet DISAGG Inc
A2: DISAGGREGATION STATEMENT - INCOME
A7: for the period ended: 30 June 2017
A9: Account code or reference to Account Code | C9: Description | D9: Audited financial statements | F9: Prescribed Transmission Services | G9: Negotiated Transmission Services | H9: Non-Regulated Transmission Services | I9: Not Allocated | J9: Workpaper reference
D10: $'000 | F10: $'000 | G10: $'000 | H10: $'000 | I10: $'000
B12: Regulated Transmission Charges | D12: ='[6]Summary P&L'!$B$11 -> 178742 | F12: ='[6]Summary P&L'!$L$11 -> 175101.9893 | G12: ='[6]Summary P&L'!$N$11 -> 3640.02518 | I12: =D12-SUM(F12:H12) -> -0.01446999999
B13: Regulated Distribution Charges | D13: ='[6]Summary P&L'!$B$10 -> 325816.4862 | I13: =D13-SUM(F13:H13) -> 325816.4862
B14: Gross proceeds from sale of assets | D14: 89 | F14: 20 | I14: 69
B15: Other revenue:
C16: Other non-regulated services | D16: ='[6]Summary P&L'!$B$12 -> 35540 | F16: 0 | G16: ='[6]Summary P&L'!$N$12 -> 0 | H16: ='[6]Summary P&L'!$M$12 -> 1727.89299 | I16: =D16-SUM(F16:H16) -> 33812.10701
C17: Customer Contributions | D17: ='[6]Summary P&L'!$B$13 -> 12114.48859 | F17: 0 | G17: ='[6]Summary P&L'!$N$13 -> 936.25296 | H17: ='[6]Summary P&L'!$M$13 -> 0 | I17: 11178.23563
B20: Total Revenue | D20: =SUM(D12:D19) -> 552301.9747 | F20: =SUM(F12:F19) -> 175121.9893 | G20: =SUM(G12:G19) -> 4576.27814 | H20: =SUM(H12:H19) -> 1727.89299 | I20: =SUM(I12:I19) -> 370875.8143
B22: Opex costs | I22: =D22-SUM(F22:H22) -> 0
B23: - | C23: Field operations and maintenance | D23: =-('[7]Trans & Other Summary'!$B$107)/1000-D24 -> -15150.01532 | F23: =D23 -> -15150.01532 | G23: 0 | H23: 0 | I23: =D23-SUM(F23:H23) -> 0
B24: - | C24: Other direct costs | D24: =SUM(F24:I24) -> -6434.53036 | F24: 0 | G24: =-('[7]Trans & Other Summary'!$B$158+'[7]Trans & Other Summary'!$B$161)/1000 -> -225.67619 | H24: =-('[7]Trans & Other Summary'!$B$167+'[7]Trans & Other Summary'!$B$172+'[7]Trans & Other Summary'!$B$175+'[7]Trans & Other Summary'!$B$178)/1000 -> -1817.5992 | I24: =-'[8]Trans & Other Summary'!$B$48/1000 -> -4391.25497
B25: - | C25: Transmission services | D25: =SUM(F25:I25) -> -5689.73883 | F25: =-('[7]Trans & Other Summary'!$H$183+'[7]Trans & Other Summary'!$H$186+'[7]Trans & Other Summary'!$H$190+'[7]Trans & Other Summary'!$H$196+'[7]Trans & Other Summary'!$H$199+'[7]Trans & Other Summary'!$H$202+'[7]Trans & Other Summary'!$H$206)/1000-([9]Adjustments!$B$28/1000) -> -5561.544056 | G25: =-('[7]Trans & Other Summary'!$H$158+'[7]Trans & Other Summary'!$H$161)/1000 -> -18.11662921 | H25: =-('[7]Trans & Other Summary'!$H$167+'[7]Trans & Other Summary'!$H$172+'[7]Trans & Other Summary'!$H$175+'[7]Trans & Other Summary'!$H$178)/1000 -> -110.0781446 | I25: =-'[8]Trans & Other Summary'!$H$48/1000 -> -7.418066161e-15
B26: - | C26: Customer and asset management | D26: =SUM(F26:I26) -> -2224.731796 | F26: =-('[7]Trans & Other Summary'!$F$183+'[7]Trans & Other Summary'!$F$186+'[7]Trans & Other Summary'!$F$190+'[7]Trans & Other Summary'!$F$196+'[7]Trans & Other Summary'!$F$199+'[7]Trans & Other Summary'!$F$202+'[7]Trans & Other Summary'!$F$206)/1000-([9]Adjustments!$D$28)/1000 -> -1157.874677 | G26: =-('[7]Trans & Other Summary'!$F$158+'[7]Trans & Other Summary'!$F$161)/1000 -> -76.11892 | H26: =-('[7]Trans & Other Summary'!$F$167+'[7]Trans & Other Summary'!$F$172+'[7]Trans & Other Summary'!$F$175+'[7]Trans & Other Summary'!$F$178)/1000 -> -107.2111 | I26: =-'[8]Trans & Other Summary'!$F$48/1000 -> -883.5270992
B27: - | C27: Corporate | D27: -8107.821615 | F27: =-('[7]Trans & Other Summary'!$G$183+'[7]Trans & Other Summary'!$G$186+'[7]Trans & Other Summary'!$G$190+'[7]Trans & Other Summary'!$G$196+'[7]Trans & Other Summary'!$G$199+'[7]Trans & Other Summary'!$G$202+'[7]Trans & Other Summary'!$G$206)/1000-([9]Adjustments!$E$28)/1000 -> -7307.597915 | G27: =-('[7]Trans & Other Summary'!$G$158+'[7]Trans & Other Summary'!$G$161)/1000 -> -117.89218 | H27: =-('[7]Trans & Other Summary'!$G$167+'[7]Trans & Other Summary'!$G$172+'[7]Trans & Other Summary'!$G$175+'[7]Trans & Other Summary'!$G$178)/1000 -> -330.19908 | I27: =-'[8]Trans & Other Summary'!$G$48/1000 -> -352.13244 | P27: =O27+O28 -> 0
B28: - | C28: Transmission operations | D28: -2253.180393 | F28: =-('[7]Trans & Other Summary'!$E$183+'[7]Trans & Other Summary'!$E$186+'[7]Trans & Other Summary'!$E$190+'[7]Trans & Other Summary'!$E$196+'[7]Trans & Other Summary'!$E$199+'[7]Trans & Other Summary'!$E$202+'[7]Trans & Other Summary'!$E$206)/1000-([9]Adjustments!$C$28/1000) -> -2123.199793 | G28: =-('[7]Trans & Other Summary'!$E$158+'[7]Trans & Other Summary'!$E$161)/1000 -> -22.12835 | H28: =-('[7]Trans & Other Summary'!$E$167+'[7]Trans & Other Summary'!$E$172+'[7]Trans & Other Summary'!$E$175+'[7]Trans & Other Summary'!$E$178)/1000 -> -107.85225 | I28: =-'[8]Trans & Other Summary'!$E$48/1000 -> 0
B29: - | C29: NCIPAP expenses | D29: 0 | F29: 0 | G29: 0 | H29: 0 | I29: =D29-SUM(F29:H29) -> 0
B30: Distribution operating costs | D30: =-('[6]Summary P&L'!$C$16+'[6]Summary P&L'!$C$17)-D14-D33 -> -137150.4964 | F30: 0 | G30: 0 | H30: 0 | I30: -137150.4964
B31: Depreciation | D31: =-'[6]Summary P&L'!$B$19 -> -155747.042 | F31: =-'[6]Summary P&L'!$L$19 -> -69614.42638 | G31: =-'[6]Summary P&L'!$N$19 -> -2204.253123 | H31: =-'[6]Summary P&L'!$M$19 -> -263.5820103 | I31: =D31-SUM(F31:H31) -> -83664.78053
B32: Loss on Revaluation of Assets | D32: =F32 -> 0 | F32: =0 -> 0 | G32: 0 | H32: ='[10]Opex summary'!$G$25 -> 0 | I32: =D32-SUM(F32:H32) -> 0
B33: Book value of assets disposed | D33: =F33 -> -14.78723 | F33: ='[11]Hist Capex by Asset Class '!$G$55*1000 -> -14.78723 | I33: =D33-SUM(F33:H33) -> 0
B35: Earnings before Interest and Tax (EBIT) | D35: =SUM(D20:D34) -> 219529.6308 | F35: =SUM(F20:F34) -> 74192.54392 | G35: =SUM(G20:G34) -> 1912.092748 | H35: =SUM(H20:H34) -> -1008.628795 | I35: =SUM(I20:I34) -> 144433.6229
B37: Interest and dividend income | I37: =D37-SUM(H37) -> 0
B38: Finance charges | D38: =-'[6]Summary P&L'!$B$21 -> -85441.96313 | I38: =D38-SUM(H38) -> -85441.96313
B40: Profit(loss) before Income Tax Expense | D40: =SUM(D35:D39) -> 134087.6677
B42: Australian income tax expense | D42: =-'[6]Summary P&L'!$B$23 -> -40159.559 | I42: =D42-H42 -> -40159.559
B43: Deferred income tax | I43: =D43-H43 -> 0
B44: Other income tax | I44: 0
B46: Profit(loss) after income tax expense | D46: =SUM(D40:D45) -> 93928.10867
B48: Dividends paid | I48: =D48-H48 -> 0
B50: Retained Profit(Loss) | D50: =SUM(D46:D49) -> 93928.10867
A53: Note:
A54: In addition it is mandatory to produce for each cost or revenue item that has been allocated to the Prescribed Services Segment a supporting workpaper that includes the following:
A55: a) the amounts that have been directly attributed to the Prescribed Services Segment
A56: b) the amounts that have been allocated to the Prescribed Services Segment
A57: c) a description of the allocation basis
A58: d) the numeric quantity of each allocator.

Sheet DISAGG Opex
A2: OPERATIONS AND MAINTENANCE EXPENDITURE
A7: for the period ended: 30 June 2017
A9: Account code or reference to account code | D9: Account Heading | G9: Ticks to indicate which rows are intersegmental costs | I9: Prescribed Transmission Services | J9: Negotiated Transmission Services | K9: Non-Regulated Transmission Services | L9: Not Allocated | M9: Total
I10: $'000 | J10: $'000 | K10: $'000 | L10: $'000 | M10: $'000
D12: Directly Attributed Costs
D13: Opex costs
D14: Field operations and maintenance | I14: =-'DISAGG Inc'!F23 -> 15150.01532 | J14: =-'DISAGG Inc'!G23 -> 0 | K14: =-'DISAGG Inc'!H23 -> 0 | L14: =-'DISAGG Inc'!I23 -> 0 | M14: =SUM(I14:L14) -> 15150.01532
D15: Other operating costs | I15: 0 | J15: =-'DISAGG Inc'!G24 -> 225.67619 | K15: =-'DISAGG Inc'!H24 -> 1817.5992 | L15: =-'DISAGG Inc'!I24 -> 4391.25497 | M15: =SUM(I15:L15) -> 6434.53036
G17: Subtotal of Directly Attributed costs | I17: =SUM(I14:I16) -> 15150.01532 | J17: =SUM(J14:J16) -> 225.67619 | K17: =SUM(K14:K16) -> 1817.5992 | L17: =SUM(L14:L16) -> 4391.25497 | M17: =SUM(M14:M16) -> 21584.54568
D19: Allocated Costs | E19: Basis of allocation | G19: Work paper Ref.**
D20: Transmission services | E20: Causal | G20: DISAGG Aloc1 | I20: =-'DISAGG Inc'!F25 -> 5561.544056 | J20: =-'DISAGG Inc'!G25 -> 18.11662921 | K20: =-'DISAGG Inc'!H25 -> 110.0781446 | L20: =-'DISAGG Inc'!I25 -> 7.418066161e-15 | M20: =SUM(I20:L20) -> 5689.73883
D21: Customer and Asset management | E21: Causal | G21: DISAGG Aloc1 | I21: =-'DISAGG Inc'!F26 -> 1157.874677 | J21: =-'DISAGG Inc'!G26 -> 76.11892 | K21: =-'DISAGG Inc'!H26 -> 107.2111 | L21: =-'DISAGG Inc'!I26 -> 883.5270992 | M21: =SUM(I21:L21) -> 2224.731796
D22: Corporate | E22: Causal & Non-Causal | G22: DISAGG Aloc1 & 2 | I22: =-'DISAGG Inc'!F27 -> 7307.597915 | J22: =-'DISAGG Inc'!G27 -> 117.89218 | K22: =-'DISAGG Inc'!H27 -> 330.19908 | L22: =-'DISAGG Inc'!I27 -> 352.13244 | M22: 8107.821615
D23: Transmission operations | E23: Causal | G23: DISAGG Aloc1 | I23: =-'DISAGG Inc'!F28 -> 2123.199793 | J23: =-'DISAGG Inc'!G28 -> 22.12835 | K23: =-'DISAGG Inc'!H28 -> 107.85225 | L23: =-'DISAGG Inc'!I28 -> 0 | M23: 2253.180393
G26: Subtotal of Allocated costs | I26: =SUM(I19:I24) -> 16150.21644 | J26: =SUM(J19:J24) -> 234.2560792 | K26: =SUM(K19:K24) -> 655.3405746 | L26: =SUM(L19:L24) -> 1235.659539 | M26: =SUM(M19:M24) -> 18275.47263
G28: Total Opex Costs per DISAGG Inc | I28: =I17+I26 -> 31300.23176 | J28: =J17+J26 -> 459.9322692 | K28: =K17+K26 -> 2472.939775 | L28: =L17+L26 -> 5626.914509
L31: Total | M31: =M17+M26 -> 39860.01831
A34: Explanation of opex costs required by the Commission (for example, bushfire costs, insurance etc)
C41: * | D41: Delete as appropriate
C42: ** | D42: For each Account Heading item subject to Causal allocation, ensure that it is included on a workpaper Aloc 1
D43: For each Account Heading item subject to Non-Causal allocation, ensure that it is included on a workpaper Aloc 2
C44: Note: Where Intersegmental costs arise, the total costs of all Business Segments will be greater than the costs in the Base Accounts. This is why the reconciliation to the Base Accounts is required on this schedule.

Sheet Ls_XLB_WorkbookFile (hidden)

Sheet Ls_AgXLB_WorkbookFile (hidden)

Sheet DISAGG Aloc1
A2: CAUSAL ALLOCATION
A7: for the period ended: 30 June 2017
A9: A copy of this workpaper is to be produced for each Causal basis that has been used to allocate costs between Business Segments.
B11: 1. Causal basis of allocation - network overheads and some corporate overheads
B13: 2. Complete the table set out below to indicate:
B14: - the Account Headings and the amounts subject to this Causal basis; and
B15: - the description and quanta of allocator that has been used
A17: Account code or reference to account code | B17: Account Heading | D17: Prescribed Transmission Services | E17: Negotiated Transmission Services | F17: Non-Regulated Transmission Services | G17: Not Allocated | H17: Total
B19: For each Account Heading that has been
B20: allocated on this basis, provide the following information
B22: NETWORK OVERHEADS
B23: Transmission Services - Direct Hours | D23: =[12]Hours!$B$14 -> 27557.16 | E23: =[12]Hours!$B$11 -> 656.21 | F23: =[12]Hours!$B$12 -> 607.6 | G23: =[12]Hours!$B$13 -> 5124.29
B24: Customer and Asset management - ABC Survey | D24: ='[9]Regulated Accounts %'!$GR$33 -> 0.1726209149 | E24: ='[9]Regulated Accounts %'!$GR$34 -> 0.003959374451 | F24: ='[9]Regulated Accounts %'!$GR$35 -> 0.011470581 | G24: ='[9]Regulated Accounts %'!$GR$36 -> 0.05976418038
B25: Transmission Operations - ABC Survey | D25: ='[9]Regulated Accounts %'!$CD$33 -> 0.3878501687 | E25: ='[9]Regulated Accounts %'!$CD$34 -> 0.003352426221 | F25: ='[9]Regulated Accounts %'!$CD$35 -> 0.01371987061 | G25: ='[9]Regulated Accounts %'!$CD$36 -> 0
B27: Corresponding cost allocation ($'000) | D27: ='DISAGG Opex'!I20+'DISAGG Opex'!I21+'DISAGG Opex'!I23 -> 8842.618526 | E27: ='DISAGG Opex'!J21+'DISAGG Opex'!J20+'DISAGG Opex'!J23 -> 116.3638992 | F27: ='DISAGG Opex'!K20+'DISAGG Opex'!K21+'DISAGG Opex'!K23 -> 325.1414946 | G27: ='DISAGG Opex'!L20+'DISAGG Opex'!L21+'DISAGG Opex'!L23 -> 883.5270992 | H27: =SUM(D27:G27) -> 10167.65102
B29: CORPORATE OVERHEADS
B30: General Counsel - ABC Survey | D30: ='[9]Regulated Accounts %'!$J$33 -> 0.1262556106 | E30: ='[9]Regulated Accounts %'!$J$34 -> 0.0004226159253 | F30: ='[9]Regulated Accounts %'!$J$35 -> 0.001713108057 | G30: ='[9]Regulated Accounts %'!$J$36 -> 0.004553993732
B31: Facilities - ABC Survey | D31: ='[9]Regulated Accounts %'!$AM$33 -> 0.111041738 | E31: ='[9]Regulated Accounts %'!$AM$34 -> 0.0003716904669 | F31: ='[9]Regulated Accounts %'!$AM$35 -> 0.001506677566 | G31: ='[9]Regulated Accounts %'!$AM$36 -> 0.004005234909
B32: IT - IT applications, PC's & mobile devices | D32: ='[9]Regulated Accounts %'!$AQ$33 -> 0.1300033287 | E32: ='[9]Regulated Accounts %'!$AQ$34 -> 0.0004351606775 | F32: ='[9]Regulated Accounts %'!$AQ$35 -> 0.001763959231 | G32: ='[9]Regulated Accounts %'!$AQ$36 -> 0.004689172555
B33: Strategy & Stakeholder Relations - ABC Survey | D33: ='[9]Regulated Accounts %'!$W$33 -> 0.1288862102 | E33: ='[9]Regulated Accounts %'!$W$34 -> 0.0004314213421 | F33: ='[9]Regulated Accounts %'!$W$35 -> 0.001748801531 | G33: ='[9]Regulated Accounts %'!$W$36 -> 0.004648878498
B34: People & Performance - FTE Headcount | D34: ='[9]Regulated Accounts %'!$AZ$33 -> 0.1395186711 | E34: ='[9]Regulated Accounts %'!$AZ$34 -> 0.0004670114224 | F34: ='[9]Regulated Accounts %'!$AZ$35 -> 0.001893068819 | G34: ='[9]Regulated Accounts %'!$AZ$36 -> 0.005032387479
B35: Compliance and Risk - Asset allocation | D35: ='[9]Regulated Accounts %'!$AK$33 -> 0.1114228572 | E35: ='[9]Regulated Accounts %'!$AK$34 -> 0.0003729661889 | F35: ='[9]Regulated Accounts %'!$AK$35 -> 0.001511848809 | G35: ='[9]Regulated Accounts %'!$AK$36 -> 0.00401898174
B37: Corresponding cost allocation ($'000) | D37: ='[9]Regulated Accounts %'!$BI$28/1000 -> 4774.828375 | E37: ='[9]Regulated Accounts %'!$BI$29/1000 -> 15.98280269 | F37: ='[9]Regulated Accounts %'!$BI$30/1000 -> 64.7875918 | G37: ='[9]Regulated Accounts %'!$BI$31/1000 -> 172.2263145 | H37: =SUM(D37:G37) -> 5027.825084
B42: 3. Provide a detailed description and explanation of the basis of allocation:
B44: Allocation as per the Cost Allocation Methodology:
B45: Network Overheads:
B46: Transmission Services management costs (overheads) are allocated on the basis of direct labour hours via timesheet entry.
B47: Customer and Asset Management as well as Transmission Operations are allocated on the basis of Activity Based Costing (ABC) Survey using estimated staff effort.
B49: Corporate Overheads:
B50: Where a cost driver has been identified (above) the costs have been allocated based on the cost driver.

Sheet DISAGG Aloc2
A2: NON-CAUSAL ALLOCATION
A7: for the period ended: 30 June 2017
A9: A copy of this workpaper is to be produced for each Non-causal basis that has been used to allocate costs between Business Segments.
B11: 1. Non-causal basis of allocation for corporate overhead
B13: 2. Complete the table set out below to indicate the Account Headings and the amounts subject to this non-causal basis.
A15: Account code or reference to account code | B15: Account Heading | D15: Prescribed Transmission Services | E15: Negotiated Transmission Services | F15: Non-Regulated Transmission Services | G15: Not Allocated | H15: Total
D16: $'000 | E16: $'000 | F16: $'000 | G16: $'000 | H16: $'000
B18: (List all Account Headings that have been allocated on this basis)
B20: Weighted Average Costs | D20: ='DISAGG Opex'!I22-'DISAGG Aloc1'!D37 -> 2532.76954 | E20: ='DISAGG Opex'!J22-'DISAGG Aloc1'!E37 -> 101.9093773 | F20: ='DISAGG Opex'!K22-'DISAGG Aloc1'!F37 -> 265.4114882 | G20: ='DISAGG Opex'!L22-'DISAGG Aloc1'!G37 -> 179.9061255 | H20: =SUM(D20:G20) -> 3079.996531
B24: 3. Provide a detailed description and explanation of the basis of allocation:
B27: These corporate costs which don't have a causal driver such as the Board, the CEO, Finance the company secretary are allocated on a weighted average basis.
B31: 4. Explain why no causal basis could be established:
B34: These general business costs have no causal driver to directly allocate and the ABC Survey is not a practical as there is not a direct link between the effort and the service.
B39: 5. Explain the reasons for choosing this non-causal basis and why it was preferred over others:
B42: The weighted average methodoly applies the non causal costs based on the weighted average of costs already allocated. This methodology was selected as it aligns these costs with the effort in the business.
B46: 6. Date on which the Commission/AER granted approval:
B49: The CAM received approval from the AER on 26th June 2015

Sheet PTS Adj
A2: REGULATORY ADJUSTMENT JOURNALS - PRESCRIBED TRANSMISSION SERVICES
A7: for the period ended: 30 June 2017
A9: Journal | B9: Account Debited | D9: Amount | F9: Supporting
A10: number | C10: Account Credited | D10: Debit | E10: Credit | F10: Statement
D11: $'000 | E11: $'000 | F11: No.
A12: Journals 1-76 have been provided in previous years regulatory financial statements.
C15: Current Year Journals
A18: 77 | B18: Self Insurance | D18: =[13]Sheet1!$D$19*1000 -> 747.9596225
C19: Provision for self insurance | E19: =D18 -> 747.9596225
B20: (Self Insurance allowance for the year 2016-17)
A23: 78 | B23: Property, Plant & Equipment | D23: 8310
C24: Retained Profits | E24: 8310
B25: (Difference in depreciation and amortisation for regulatory purposes 2016-17)
A42: Note:
A43: This schedule must contain for each Regulatory Adjustment made on
A44: the Income Statement, the following:
A45: a) a journal entry showing accounts debited and credited
A46: b) an explanation of why the adjustment has been made.

Sheet PTS PriceRedn
A2: PRICE REDUCTION/RECOVERY - PRESCRIBED TRANSMISSION SERVICES
A7: for the period ended: 30 June 2017
B9: $Customer TUOS | C9: $Common service
B10: general charges | C10: charges
A11: Reduction in prices payable
A12: by transmission customers
A17: Total Reduction | B17: =SUM(B11:B16) -> 0 | C17: =SUM(C11:C16) -> 0
A19: *Recovery of above reduction in prices
A20: from other transmission customers
A23: Total Recovery | B23: =SUM(B20:B22) -> 0 | C23: =SUM(C20:C22) -> 0
A26: Note:
A27: Each instance of a price reduction/recovery should be detailed.
A28: *The amount of any reduction in a transmission customer's Customer TUOS general charges
A29: and/or common service charges recovered from other transmission customers under clause 6A.26.1
A30: of the Rules.

Sheet PTS PDisc
A2: PRUDENT DISCOUNTS - PRESCRIBED TRANSMISSION SERVICES
A7: for the period ended: 30 June 2017
B12: Number of discounts recovered in previous year
A13: For each discount recovered:
B14: Date of AER approval, if given | D14: Not Applicable to TasNetworks
B15: Expiry date
B16: Party receiving the discount
B17: Beneficiary of discount
B18: Amount of discount offered in previous year
B19: Amount recovered from the other custumers in previous year
B20: Load subject to discount (max, min, average)
A21: For each discount approved by the AER:
B22: Compliance with conditions - for each condition imposed provide information demonstrating that the condition has been met.

Sheet PTS Rev
A2: REVENUE ANALYSIS - PRESCRIBED TRANSMISSION SERVICES
A7: for the period ended: 30 June 2017
A9: Account code or reference | B9: Tariff Category | D9: Amount of electricity transmitted | E9: Revenue
D10: GWh | E10: $'000
A12: Not Required - Duplicated in Economic Benchmarking RIN
C19: Total

Sheet PTS Asset Aging
A2: ASSET AGING SCHEDULE - PRESCRIBED TRANSMISSION SERVICES
A7: All asset values are net regulatory values
F10: Useful life remaining (years after Regulatory Accounting Date)
C11: Total | D11: 1-5 | E11: 6-10 | F11: 11-15 | G11: 16-20 | H11: >20
A12: Asset class | C12: $'000 | D12: $'000 | E12: $'000 | F12: $'000 | G12: $'000 | H12: $'000
A15: Not Required - Duplicated in Category Analysis RIN
B22: Total net regulatory value

Sheet DISAGG ProvSum
A2: SUMMARY OF PROVISIONS
A7: for the period ended: 30 June 2017
D9: Prescribed Transmission Services | E9: Negotiated Transmission Services | F9: Non-Regulated Transmission Services | G9: Not Allocated | H9: Total
D10: $'000 | E10: $'000 | F10: $'000 | G10: $'000 | H10: $'000
B12: Amount set aside to provisions | D12: ='[14]500H- 16-17'!$O$34*'[14]Labour splits'!$S$32 -> 6414.371767 | G12: ='[14]500H- 16-17'!$O$34*('[14]Labour splits'!$S$34+'[14]Labour splits'!$S$36) -> 513.9206223 | H12: =SUM(D12:G12) -> 6928.29239
H13: =SUM(D13:G13) -> 0
B14: Expenditure incurred debited to provisions | D14: ='[14]500H- 16-17'!$O$36*'[14]Labour splits'!$S$32 -> -6448.356514 | G14: ='[14]500H- 16-17'!$O$36*('[14]Labour splits'!$S$34+'[14]Labour splits'!$S$36) -> -516.6434863 | H14: -6965
H15: 0
B16: Amounts written back from provisions | D16: =-D20+D22-D12-D14 -> -1010.589704 | G16: =-G20+G22-G12-G14 -> 1976.090694 | H16: 965.5009902
H17: 0
B18: Net movement in provisions | D18: =SUM(D12:D17) -> -1044.574451 | E18: =SUM(E12:E17) -> 0 | F18: 0 | G18: =SUM(G12:G17) -> 1973.36783 | H18: 928.7933799
B20: Balance at start of period | D20: =SUM('[14]3.2.3 Provisions - TNSP 2016-17'!$D$13,'[14]3.2.3 Provisions - TNSP 2016-17'!$D$33,'[14]3.2.3 Provisions - TNSP 2016-17'!$D$53,'[14]3.2.3 Provisions - TNSP 2016-17'!$D$73)/1000 -> 39009.34175 | E20: 0 | F20: 0 | G20: ='[14]500H- 16-17'!$O$32-D20 -> 1068.37617 | H20: =SUM(D20:G20) -> 40077.71792
B22: Balance at end of period | D22: ='[14]500H- 16-17'!$O$43*'[14]Labour splits'!$S$32 -> 37964.7673 | E22: =SUM(E18:E21) -> 0 | F22: 0 | G22: ='[14]500H- 16-17'!$O$43*('[14]Labour splits'!$S$34+'[14]Labour splits'!$S$36) -> 3041.744 | H22: 41006.5113
A24: Comprising:
B26: Current provisions | D26: ='[14]Summary Consolidated'!$O$55*'[14]Labour splits'!$I$32/1000 -> 6137.454954 | G26: =('[14]Summary Consolidated'!$O$55*('[14]Labour splits'!$I$34+'[14]Labour splits'!$I$36))/1000 -> 491.7339973 | H26: =SUM(D26:G26) -> 6629.188951
B27: Non-current provision | D27: =D29-D26 -> 31827.31235 | E27: 0 | F27: 0 | G27: =G29-G26 -> 2550.010003 | H27: =SUM(D27:G27) -> 34377.32235
C29: Total per balance sheet | D29: =D22 -> 37964.7673 | E29: =E22 -> 0 | F29: 0 | G29: =G22 -> 3041.744 | H29: =SUM(H24:H28) -> 41006.5113
A32: Note:
A33: In addition it is mandatory to produce for each item that has been allocated to the Prescribed Services
A34: Segment a supporting workpaper that includes the following:
A35: a) the amounts that have been directly attributed to the Prescribed Services Segment
A36: b) the amounts that have been allocated to the Prescribed Services Segment
A37: c) a description of the allocation basis
A38: d) the numeric quantity of each allocator.
A40: The basis of attribution of provisions to the Prescribed Services Segment, should follow the attribution of the
A41: expenses to which they relate. Taxation, interest and dividend provisions should be attributed to the Not Allocated Segment.

Sheet PTS ProvRec
A2: PROVISIONS RECONCILIATION - PRESCRIBED TRANSMISSION SERVICES
A7: for the period ended: 30 June 2017
C9: Description | D9: Discretionary Heading for each Material Provision | I9: Others | J9: Total
D11: $'000 | E11: $'000 | F11: $'000 | G11: $'000 | H11: $'000 | I11: $'000 | J11: $'000
A13: Balance at start of period
A15: Amount set aside to provisions | D15: Not required - Duplicated in Economic Benchmarking RIN
A17: Expenditure incurred debited to provisions
A19: Amounts written back from provisions
A22: Balance at end of period
A26: Net Movement in provisions per RFS FPerf
A29: Note:
A30: In addition it is mandatory to produce for each item that has been allocated to the Prescribed Services Segment a
A31: supporting workpaper that includes the following:
A32: a) the amounts that have been directly attributed to the Prescribed Services Segment
A33: b) the amounts that have been allocated to the Prescribed Services Segment
A34: c) a description of the allocation basis
A35: d) the numeric quantity of each allocator.
A37: The basis of attribution of provisions to the Prescribed Services Segment, should follow the attribution of the expenses to
A38: which they relate. Taxation, interest and dividend provisions should be attributed to the Not Allocated Segment.

Sheet INF RelPartTrans
A2: RELATED PARTY TRANSACTIONS
A7: for the period ended: 30 June 2017
A9: Details of related party | B9: Description of transaction | C9: Prescribed | D9: Procurement process | E9: Monetary value of transaction
E10: $'000
B12: Revenue
B15: Expense
B18: Capital
A22: Balances with related parties at regulatory accounting date
E23: $'000
B25: Current assets
B27: Non-current assets
B29: Total assets
B31: Current liabilities
B33: Non-current liabilities
B35: Total liabilities
A37: Commitments with related parties at regulatory accounting period
A38: Value of commitments with related parties that are expected to result in related party transactions in future regulatory accounting periods:
C39: Recognised as liabilities | D39: Not recognised as liabilities | E39: Total
C40: $'000 | D40: $'000 | E40: $'000
B42: Payable:
B43: Not later than one year
B44: Later than one year and not later than five years
B45: Later than five years
B47: Total commitments

Sheet INF RevRec
A2: REVENUE RECONCILIATION
A7: for the period ended: 30 June 2017
B9: Description | D9: Unit type | E9: Unit
B12: CPI (March Tx) | D12: CPI – All Groups Weighted Average of 8 Capital Cities (ABS) | E12: ='[15]2016-17'!$E$12 -> 104.8 | F12: Dec 2013 qtr
B13: CPI (March Tx+1) | D13: As above | E13: ='[15]2016-17'!$E$13 -> 108.4 | F13: Dec 2015 qtr
B14: Change in CPI | D14: Per cent | E14: ='[15]2016-17'!$E$14 -> 2.38
B15: X-factor | D15: Per cent | E15: ='[15]2016-17'!$E$15 -> 2.31
B16: AR (Tx) | D16: $ | E16: ='[15]2016-17'!$E$16 -> 172642496.1 | F16: AER Final Decision PTRM, 2016
B17: AR (Tx+1) | D17: $ | E17: ='[15]2016-17'!$E$17 -> 170366992
B18: S-factor (Tx) | D18: $+ | E18: ='[15]2016-17'!$E$18 -> 2878177 | F18: STPIS & Network Support
B19: Other pass through | D19: $+ | E19: ='[15]2016-17'!$E$19 -> 2688195
B20: Sub-total | E20: =SUM(E17:E19) -> 175933364
B21: PY Under/over recovery | D21: $+ | E21: ='[15]2016-17'!$E$21 -> 1673490
B22: CY adj (incl. forecast settlement residue) | D22: $+ | E22: ='[15]2016-17'!$E$22 -> -14950000
B23: Net load export charge | D23: $+ | E23: ='[15]2016-17'!$E$23 -> -6573970
B24: Revenue Cap Tx+1 | D24: $ | E24: =SUM(E20:E23) -> 156082884 | F24: 2016/17

Sheet Historic Opex Summary
B2: HISTORIC OPEX by expenditure category
B13: $ million nominal | C13: Financial year | D13: Any part years | E13: Year 1 | F13: Year 2 | G13: Year 3 | H13: Year 4 | I13: Year 5 | J13: Total | K13: Revenue Cap Allowance | L13: Key cost drivers and explanation for material differences over time
B14: System Recurrent
B15: Maintenance
B16: Secondary Systems
B17: Labour
B18: Materials
B19: Sub-Totals
B20: Substations
B21: Labour | C21: Not Required - Duplicated in Category Analysis RIN & Economic Benchmarking RIN
B22: Materials
B23: Sub-Totals
B24: Lines
B25: Labour
B26: Materials
B27: Sub-Totals
B28: Communications
B29: Labour
B30: Materials
B31: Sub-Totals
B32: Easements
B33: Labour
B34: Materials
B35: Sub-Totals
B36: Summary
B37: Sub-Total Labour
B38: Sub-Total Materials
B39: Total Maintenance
B40: Asset Management Support
B41: Operations
B42: OHS
B43: Taxes and Charges
B44: Insurance
B45: Total System Recurrent
B46: System Non-Recurrent
B47: Asset Works Program
B48: Asset Management Support
B49: Total System Non-Recurrent
B50: Non-System
B51: Finance
B52: HR
B53: IT
B54: Other
B55: Total Non-System
B56: Summary
B57: Total Labour
B58: Total Maintenance Materials
B59: Total Other Materials
B60: TOTAL OPEX
B62: Grand Total
B64: Revenue Cap Allowance

Sheet Historic Opex by Category
B2: HISTORIC OPEX by expenditure category
D13: Year 2
D14: Field Maintenance
B15: $ million, nominal | D15: Routine | E15: Condition-Based | F15: Corrective | H15: TOTAL | J15: Revenue Cap Allowance | L15: Key cost drivers and explanation for material differences over time
B16: System Recurrent
B17: Maintenance
B18: Secondary Systems
B19: Labour
B20: Materials
B21: Sub-Totals
B22: Substations
B23: Labour
B24: Materials
B25: Sub-Totals
B26: Lines
B27: Labour
B28: Materials
B29: Sub-Totals
B30: Communications
B31: Labour
B32: Materials | C32: Not Required - Duplicated in Category Analysis RIN and Economic Benchmarking RIN
B33: Sub-Totals
B34: Easements
B35: Labour
B36: Materials
B37: Sub-Totals
B38: Summary
B39: Sub-Total Labour
B40: Sub-Total Materials
B41: Total Maintenance
B42: Asset Management Support
B43: Operations
B44: OHS
B45: Taxes and Charges
B46: Insurance
B47: Total System Recurrent
B48: System Non-Recurrent
B49: Asset Works Program
B50: Asset Management Support
B51: Total System Non-Recurrent
B52: Non-System
B53: Finance
B54: HR
B55: IT
B56: Other
B57: Total Non-System
B58: Summary
B59: Total Labour
B60: Total Maintenance Materials
B61: Total Other Materials
B62: TOTAL OPEX
B65: Grand Total
B67: Revenue Cap Allowance

Sheet Historic Capex by Category
B2: HISTORIC CAPEX by project category
A6: Not Required - Duplicated in Category Analysis RIN
A14: $M nominal
A16: Project Category | F16: Any Part Year | G16: Year 1 | H16: Year 2 | I16: Year 3 | J16: Year 4 | K16: Year 5 | L16: TOTAL
A18: NETWORK
A19: NON-LOAD DRIVEN | B19: Replacements
B21: Security/Compliance
B23: Other
A25: NON NETWORK
A26: BUSINESS IT | C26: Information Technology
A28: SUPPORT THE BUSINESS | C28: Buildings
C30: Motor Vehicles
C32: Other
A35: TOTAL FDC
A36: TOTAL HISTORIC CAPEX

Sheet Hist Capex by Asset Class
B2: HISTORIC CAPEX by asset class
A5: Actual Gross Capital Expenditure – As Incurred ($m Nominal) incl NCIPAP | M5: Actual Gross NCIPAP Capital Expenditure – As Incurred ($m Nominal)
D6: 2013-14 | E6: 2014-15 | F6: 2015-16 | G6: 2016-17 | H6: 2017-18 | I6: 2018-19 | N6: 2013-14 | O6: 2014-15 | P6: 2015-16 | Q6: 2016-17 | R6: 2017-18 | S6: 2018-19
A7: Asset Class
B8: Transmission Lines And Cables - 60Yrs | C8: Transmission Lines And Cables - 60Yrs | D8: 22.778164 | E8: 1.756107749 | F8: ='[16]Hist Capex by Asset Class '!$F$8 -> 3.28267815 | G8: ='[17]Hist Capex by Asset Class '!$G8 -> 6.277840118 | M8: Transmission Lines And Cables - 60Yrs | O8: 0 | P8: ='[16]Hist Capex by Asset Class '!$P$8 -> 0 | Q8: ='[17]Hist Capex by Asset Class '!$Q8 -> 0.07423266986
B9: Transmission Lines And Cables - 45Yrs | C9: Transmission Lines And Cables - 45Yrs | D9: 0.113544 | E9: 0.6866957392 | F9: ='[16]Hist Capex by Asset Class '!$F$9 -> 0.9248934051 | G9: ='[17]Hist Capex by Asset Class '!$G9 -> 6.591623635 | M9: Transmission Lines And Cables - 45Yrs | O9: 0.07766615 | P9: ='[16]Hist Capex by Asset Class '!$P$9 -> 0.11171664 | Q9: ='[17]Hist Capex by Asset Class '!$Q9 -> 0.5454325024
B10: Transmission Lines And Cables - 10Yrs | C10: Transmission Lines And Cables - 10Yrs | D10: 0.466244 | E10: 0.1276086124 | F10: ='[16]Hist Capex by Asset Class '!$F$10 -> 0.1744711695 | G10: ='[17]Hist Capex by Asset Class '!$G10 -> 9.230056003 | M10: Transmission Lines And Cables - 10Yrs | O10: 0 | P10: ='[16]Hist Capex by Asset Class '!$P$10 -> 0 | Q10: ='[17]Hist Capex by Asset Class '!$Q10 -> 0.9105121815
B11: Transmission Substations - 60Yrs | C11: Transmission Substations - 60Yrs | D11: 8.233956 | E11: 4.780899154 | F11: ='[16]Hist Capex by Asset Class '!$F$11 -> 1.50778175 | G11: ='[17]Hist Capex by Asset Class '!$G11 -> 2.421602488 | M11: Transmission Substations - 60Yrs | O11: 0 | P11: ='[16]Hist Capex by Asset Class '!$P$11 -> 0 | Q11: ='[17]Hist Capex by Asset Class '!$Q11 -> 0.1168024007
B12: Transmission Substations - 45Yrs | C12: Transmission Substations - 45Yrs | D12: 22.782576 | E12: 7.948113951 | F12: ='[16]Hist Capex by Asset Class '!$F$12 -> 4.045531012 | G12: ='[17]Hist Capex by Asset Class '!$G12 -> 11.39932488 | M12: Transmission Substations - 45Yrs | O12: 0.00949739 | P12: ='[16]Hist Capex by Asset Class '!$P$12 -> 0.56497689 | Q12: ='[17]Hist Capex by Asset Class '!$Q12 -> 0.4165045395
B13: Transmission Substations - 15Yrs | C13: Transmission Substations - 15Yrs | D13: 3.377145 | E13: 1.176664947 | F13: ='[16]Hist Capex by Asset Class '!$F$13 -> 0.6882824451 | G13: ='[17]Hist Capex by Asset Class '!$G13 -> 0.3032971161 | M13: Transmission Substations - 15Yrs | O13: 0.13943455 | P13: ='[16]Hist Capex by Asset Class '!$P$13 -> 0.24872168 | Q13: ='[17]Hist Capex by Asset Class '!$Q13 -> 0
B14: Protection And Control - 15Yrs | C14: Protection And Control - 15Yrs | D14: 14.167741 | E14: 4.473020641 | F14: ='[16]Hist Capex by Asset Class '!$F$14 -> 4.004121853 | G14: ='[17]Hist Capex by Asset Class '!$G14 -> 2.752846769 | M14: Protection And Control - 15Yrs | O14: 0.02097434 | P14: ='[16]Hist Capex by Asset Class '!$P$14 -> 0.25984871 | Q14: ='[17]Hist Capex by Asset Class '!$Q14 -> 0.03011316
B15: Protection And Control - 4Yrs | C15: Protection And Control - 4Yrs | D15: 0.099853 | E15: -0.0168982 | F15: ='[16]Hist Capex by Asset Class '!$F$15 -> 0 | G15: ='[17]Hist Capex by Asset Class '!$G15 -> 0 | M15: Protection And Control - 4Yrs | O15: 0 | P15: ='[16]Hist Capex by Asset Class '!$P$15 -> 0 | Q15: ='[17]Hist Capex by Asset Class '!$Q15 -> 0
B16: Transmission Operations - 10Yrs | C16: Transmission Operations - 10Yrs | D16: 1.411877 | E16: 0.6102501768 | F16: ='[16]Hist Capex by Asset Class '!$F$16 -> 4.35188126 | G16: ='[17]Hist Capex by Asset Class '!$G16 -> 6.591114818 | M16: Transmission Operations - 10Yrs | O16: 0 | P16: ='[16]Hist Capex by Asset Class '!$P$16 -> 0.03462396 | Q16: ='[17]Hist Capex by Asset Class '!$Q16 -> -0.00153876
B17: Transmission Operations - 4Yrs | C17: Transmission Operations - 4Yrs | D17: 0.01511 | E17: 0 | F17: ='[16]Hist Capex by Asset Class '!$F$17 -> 0 | G17: ='[17]Hist Capex by Asset Class '!$G17 -> 0.2947817623 | M17: Transmission Operations - 4Yrs | O17: 0 | P17: ='[16]Hist Capex by Asset Class '!$P$17 -> 0 | Q17: ='[17]Hist Capex by Asset Class '!$Q17 -> 0
B18: Other - 40Yrs | C18: Other - 40Yrs | D18: 1.147401 | E18: 0.245294949 | F18: ='[16]Hist Capex by Asset Class '!$F$18 -> 0.0757287386 | G18: ='[17]Hist Capex by Asset Class '!$G18 -> 0.9383810939 | M18: Other - 40Yrs | O18: 0 | P18: ='[16]Hist Capex by Asset Class '!$P$18 -> 0 | Q18: ='[17]Hist Capex by Asset Class '!$Q18 -> 0
B19: Other - 9Yrs | C19: Other - 9Yrs | D19: 0.572312 | E19: 0.9443132026 | F19: ='[16]Hist Capex by Asset Class '!$F$19 -> 4.702744986 | G19: ='[17]Hist Capex by Asset Class '!$G19 -> 0.6544342092 | M19: Other - 9Yrs | O19: 0 | P19: ='[16]Hist Capex by Asset Class '!$P$19 -> 0 | Q19: ='[17]Hist Capex by Asset Class '!$Q19 -> 0
B20: Other - 4Yrs | C20: Other - 4Yrs | D20: 1.525094 | E20: 2.157794696 | F20: ='[16]Hist Capex by Asset Class '!$F$20 -> 0.9826983398 | G20: ='[17]Hist Capex by Asset Class '!$G20 -> 3.428457074 | M20: Other - 4Yrs | O20: 0 | P20: ='[16]Hist Capex by Asset Class '!$P$20 -> 0 | Q20: ='[17]Hist Capex by Asset Class '!$Q20 -> 0
B21: Communications - 45Yrs | C21: Communications - 45Yrs | D21: 0 | E21: 0.006107073485 | F21: ='[16]Hist Capex by Asset Class '!$F$21 -> 0 | G21: ='[17]Hist Capex by Asset Class '!$G21 -> 0 | M21: Communications - 45Yrs | O21: 0 | P21: ='[16]Hist Capex by Asset Class '!$P$21 -> 0 | Q21: ='[17]Hist Capex by Asset Class '!$Q21 -> 0
B22: Communications - 10Yrs | C22: Communications - 10Yrs | D22: 0 | E22: 0.04593307339 | F22: ='[16]Hist Capex by Asset Class '!$F$22 -> 0 | G22: ='[17]Hist Capex by Asset Class '!$G22 -> 0 | M22: Communications - 10Yrs | O22: 0 | P22: ='[16]Hist Capex by Asset Class '!$P$22 -> 0 | Q22: ='[17]Hist Capex by Asset Class '!$Q22 -> 0
B23: Communications - 5Yrs | C23: Communications - 5Yrs | D23: 0 | E23: 0.0114 | F23: ='[16]Hist Capex by Asset Class '!$F$23 -> 0 | G23: ='[17]Hist Capex by Asset Class '!$G23 -> 0 | M23: Communications - 5Yrs | O23: 0 | P23: ='[16]Hist Capex by Asset Class '!$P$23 -> 0 | Q23: ='[17]Hist Capex by Asset Class '!$Q23 -> 0
B24: Land and Buildings | C24: Land and Buildings | D24: 0.084627 | E24: 0.08546987898 | F24: ='[16]Hist Capex by Asset Class '!$F$24 -> 0.08878563185 | G24: ='[17]Hist Capex by Asset Class '!$G24 -> 0.07753090487 | M24: Land and Buildings | O24: 0 | P24: ='[16]Hist Capex by Asset Class '!$P$24 -> 0 | Q24: ='[17]Hist Capex by Asset Class '!$Q24 -> 5.591614e-05
B25: Equity Raising | C25: Equity Raising | D25: 0 | E25: 0 | F25: ='[16]Hist Capex by Asset Class '!$F$25 -> 0 | G25: ='[17]Hist Capex by Asset Class '!$G25 -> 0 | M25: Equity Raising | O25: 0 | P25: ='[16]Hist Capex by Asset Class '!$P$25 -> 0 | Q25: ='[17]Hist Capex by Asset Class '!$Q25 -> 0
J26: Total Yrs 1-5 | K26: Total | T26: Total Yrs 1-5 | U26: Total
B27: Sub total | D27: =SUM(D8:D26) -> 76.775644 | E27: =SUM(E8:E26) -> 25.03877564 | F27: =SUM(F8:F26) -> 24.82959874 | G27: 50.96129088 | H27: =SUM(H8:H26) -> 0 | I27: =SUM(I8:I26) -> 0 | J27: =SUM(E27:I27) -> 100.8296653 | K27: =SUM(D27:I27) -> 177.6053093 | M27: Sub total | N27: =SUM(N8:N26) -> 0 | O27: =SUM(O8:O26) -> 0.24757243 | P27: =SUM(P8:P26) -> 1.21988788 | Q27: 2.09211461 | R27: =SUM(R8:R26) -> 0 | S27: =SUM(S8:S26) -> 0 | T27: =SUM(O27:S27) -> 3.55957492 | U27: =SUM(N27:S27) -> 3.55957492
A30: Notes: - Exclude half year rate of return. Inputs are assumed to be in middle of year terms because actual capex is reported evenly over a financial year. - The asset classes inputed by each TNSP must be the same as those used in the RFM/PTRM. - Yr -1 is the final year of the previous regulatory control period. - Capex should be adjusted for any movements in capitalised provisions and be net of customer contributions. Where relevant please note the amount of any customer contributions excluded. - TNSPs are to update capex as incurred for previous years of the regulatory control period to reflect any movements that may have occurred (e.g. due to the final commissioning of assets). When this information is updated TNSPs must also note the reason for the movement. - Where capex related to Network Capability Incentive Parameter Action Plan (NCIPAP) projects has been incurred and reported across asset classes, the total amount for each project should be noted. | M30: Actual Gross NCIPAP Capital Expenditure – As Incurred ($m Nominal)
N31: 2013-14 | O31: 2014-15 | P31: 2015-16 | Q31: 2016-17 | R31: 2017-18 | S31: 2018-19
M33: Weather Station refurbishment program | O33: ='[16]Hist Capex by Asset Class '!$O$33 -> 0.13943455 | P33: ='[16]Hist Capex by Asset Class '!$P$33 -> 0.24872168 | Q33: ='[17]Hist Capex by Asset Class '!$Q33 -> 0.96798944
M34: ND1346 George Town Automatic Voltage Control | O34: ='[16]Hist Capex by Asset Class '!$O$34 -> 0 | P34: ='[16]Hist Capex by Asset Class '!$P$34 -> 0.03462396 | Q34: ='[17]Hist Capex by Asset Class '!$Q34 -> -0.00153876
M35: ND1351 Implementation of dynamic rating | O35: ='[16]Hist Capex by Asset Class '!$O$35 -> 0.01302081 | P35: ='[16]Hist Capex by Asset Class '!$P$35 -> 0.0118018 | Q35: ='[17]Hist Capex by Asset Class '!$Q35 -> 0.0176984
M36: ND1363 TL Dead End Assembly Upgrade Prog Stg 2 | O36: ='[16]Hist Capex by Asset Class '!$O$36 -> 0.07766615 | P36: ='[16]Hist Capex by Asset Class '!$P$36 -> 0.03157489 | Q36: ='[17]Hist Capex by Asset Class '!$Q36 -> 0.16677003
M37: ND1364 Power Transformer Dynamic Rating Progra | O37: ='[16]Hist Capex by Asset Class '!$O$37 -> 0.00795353 | P37: ='[16]Hist Capex by Asset Class '!$P$37 -> 0.24804691 | Q37: ='[17]Hist Capex by Asset Class '!$Q37 -> 0
M38: ND1365 Line Fault Indicator Comms Program | O38: ='[16]Hist Capex by Asset Class '!$O$38 -> 0 | P38: ='[16]Hist Capex by Asset Class '!$P$38 -> 0.02698114 | Q38: ='[17]Hist Capex by Asset Class '!$Q38 -> 0.01683677
M39: ND1366 Sheffield Sub 220kV K and L Bay Upgrade | O39: ='[16]Hist Capex by Asset Class '!$O$39 -> 0.00744053 | P39: ='[16]Hist Capex by Asset Class '!$P$39 -> 0.26112181 | Q39: ='[17]Hist Capex by Asset Class '!$Q39 -> 0.84447853
M40: ND1367 Castle Forbes Bay Tee disconnector upgr | O40: ='[16]Hist Capex by Asset Class '!$O$40 -> 0.00205686 | P40: ='[16]Hist Capex by Asset Class '!$P$40 -> 0.30385508 | Q40: ='[17]Hist Capex by Asset Class '!$Q40 -> 0
A41: Actual Asset Disposal – As Incurred ($m Nominal) | M41: ND1372 Modern fault location functionality | O41: ='[16]Hist Capex by Asset Class '!$O$41 -> 0 | P41: ='[16]Hist Capex by Asset Class '!$P$41 -> 0.05316061 | Q41: ='[17]Hist Capex by Asset Class '!$Q41 -> 0.0798802 | T41: Total Yrs 1-5 | U41: Total
D42: 2013-14 | E42: 2014-15 | F42: 2015-16 | G42: 2016-17 | H42: 2017-18 | I42: 2018-19 | M42: Sub total | N42: =SUM(N33:N41) -> 0 | O42: 0.24757243 | P42: 1.21988788 | Q42: 2.09211461 | R42: 0 | S42: 0 | T42: =SUM(O42:S42) -> 3.55957492 | U42: =SUM(N42:S42) -> 3.55957492
A43: Asset Class
B44: Transmission Lines And Cables - 60Yrs | E44: 0 | F44: ='[16]Hist Capex by Asset Class '!$F$44 -> 0 | G44: ='[17]Hist Capex by Asset Class '!$G44 -> 0
B45: Transmission Lines And Cables - 45Yrs | E45: 0 | F45: ='[16]Hist Capex by Asset Class '!$F$45 -> 0 | G45: ='[17]Hist Capex by Asset Class '!$G45 -> 0
B46: Transmission Lines And Cables - 10Yrs | E46: 0 | F46: ='[16]Hist Capex by Asset Class '!$F$46 -> 0 | G46: ='[17]Hist Capex by Asset Class '!$G46 -> 0
B47: Transmission Substations - 60Yrs | E47: 0 | F47: ='[16]Hist Capex by Asset Class '!$F$47 -> 0 | G47: ='[17]Hist Capex by Asset Class '!$G47 -> 0
B48: Transmission Substations - 45Yrs | E48: 0 | F48: ='[16]Hist Capex by Asset Class '!$F$48 -> 0 | G48: ='[17]Hist Capex by Asset Class '!$G48 -> 0
B49: Transmission Substations - 15Yrs | E49: 0 | F49: ='[16]Hist Capex by Asset Class '!$F$49 -> 0 | G49: ='[17]Hist Capex by Asset Class '!$G49 -> 0
B50: Protection And Control - 15Yrs | E50: 0 | F50: ='[16]Hist Capex by Asset Class '!$F$50 -> 0 | G50: ='[17]Hist Capex by Asset Class '!$G50 -> 0
B51: Protection And Control - 4Yrs | E51: 0 | F51: ='[16]Hist Capex by Asset Class '!$F$51 -> 0 | G51: ='[17]Hist Capex by Asset Class '!$G51 -> 0
B52: Transmission Operations - 10Yrs | E52: 0 | F52: ='[16]Hist Capex by Asset Class '!$F$52 -> 0 | G52: ='[17]Hist Capex by Asset Class '!$G52 -> 0
B53: Transmission Operations - 4Yrs | E53: 0 | F53: ='[16]Hist Capex by Asset Class '!$F$53 -> 0 | G53: ='[17]Hist Capex by Asset Class '!$G53 -> 0
B54: Other - 40Yrs | E54: 0 | F54: ='[16]Hist Capex by Asset Class '!$F$54 -> 0 | G54: ='[17]Hist Capex by Asset Class '!$G54 -> 0
B55: Other - 9Yrs | E55: -0.027 | F55: ='[16]Hist Capex by Asset Class '!$F$55 -> -0.0006 | G55: ='[17]Hist Capex by Asset Class '!$G55 -> -0.01478723
B56: Other - 4Yrs | E56: 0 | F56: ='[16]Hist Capex by Asset Class '!$F$56 -> 0 | G56: ='[17]Hist Capex by Asset Class '!$G56 -> 0
B57: Communications - 45Yrs | E57: 0 | F57: ='[16]Hist Capex by Asset Class '!$F$57 -> 0 | G57: ='[17]Hist Capex by Asset Class '!$G57 -> 0
B58: Communications - 10Yrs | E58: 0 | F58: ='[16]Hist Capex by Asset Class '!$F$58 -> 0 | G58: ='[17]Hist Capex by Asset Class '!$G58 -> 0
B59: Communications - 5Yrs | E59: 0 | F59: ='[16]Hist Capex by Asset Class '!$F$59 -> 0 | G59: ='[17]Hist Capex by Asset Class '!$G59 -> 0
B60: Land and Buildings | E60: 0 | F60: ='[16]Hist Capex by Asset Class '!$F$60 -> 0 | G60: ='[17]Hist Capex by Asset Class '!$G60 -> 0
B61: Equity Raising | E61: 0 | F61: ='[16]Hist Capex by Asset Class '!$F$61 -> 0 | G61: ='[17]Hist Capex by Asset Class '!$G61 -> 0 | J61: Total Yrs 1-5 | K61: Total
B62: Sub total | D62: =SUM(D44:D61) -> 0 | E62: =SUM(E44:E61) -> -0.027 | F62: =SUM(F44:F61) -> -0.0006 | G62: =SUM(G44:G61) -> -0.01478723 | H62: 0 | I62: 0 | J62: =SUM(E62:I62) -> -0.04238723 | K62: =SUM(D62:I62) -> -0.04238723
A64: Notes: - Exclude half year rate of return. Inputs are assumed to be in middle of year terms because actual disposal is reported evenly over a financial year. - The asset classes inputed by each TNSP must be the same as those used in the RFM/PTRM. - Yr -1 is the final year of the previous regulatory control period.
A67: Actual Gross Capital Expenditure – As Commissioned ($m Nominal) incl NCIPAP | M67: Actual Gross NCIPAP Capital Expenditure – As commissioned ($m Nominal)
D68: 2013-14 | E68: 2014-15 | F68: 2015-16 | G68: 2016-17 | H68: 2017-18 | I68: 2018-19 | N68: 2013-14 | O68: 2014-15 | P68: 2015-16 | Q68: 2016-17 | R68: 2017-18 | S68: 2018-19
A69: Asset Class
B70: Transmission Lines And Cables - 60Yrs | C70: Transmission Lines And Cables - 60Yrs | D70: 43.8951563 | E70: 5.42152545 | F70: ='[16]Hist Capex by Asset Class '!$F70 -> 2.66371688 | G70: ='[17]Hist Capex by Asset Class '!$G70 -> 4.22012127 | M70: Transmission Lines And Cables - 60Yrs | O70: 0 | P70: ='[16]Hist Capex by Asset Class '!$P73 -> 0 | Q70: ='[17]Hist Capex by Asset Class '!$Q73 -> 0
B71: Transmission Lines And Cables - 45Yrs | C71: Transmission Lines And Cables - 45Yrs | D71: 3.15982735 | E71: 0.69969367 | F71: ='[16]Hist Capex by Asset Class '!$F71 -> 0 | G71: ='[17]Hist Capex by Asset Class '!$G71 -> 0 | M71: Transmission Lines And Cables - 45Yrs | O71: 0 | P71: ='[16]Hist Capex by Asset Class '!$P74 -> 0 | Q71: ='[17]Hist Capex by Asset Class '!$Q74 -> 0
B72: Transmission Lines And Cables - 10Yrs | C72: Transmission Lines And Cables - 10Yrs | D72: 0.73140528 | E72: 0.47535362 | F72: ='[16]Hist Capex by Asset Class '!$F72 -> 0.7851863 | G72: ='[17]Hist Capex by Asset Class '!$G72 -> 1.91100164 | M72: Transmission Lines And Cables - 10Yrs | O72: 0 | P72: ='[16]Hist Capex by Asset Class '!$P75 -> 0 | Q72: ='[17]Hist Capex by Asset Class '!$Q75 -> 0
B73: Transmission Substations - 60Yrs | C73: Transmission Substations - 60Yrs | D73: 10.62422259 | E73: 3.6910834 | F73: ='[16]Hist Capex by Asset Class '!$F73 -> 3.00836545 | G73: ='[17]Hist Capex by Asset Class '!$G73 -> 1.05954666 | M73: Transmission Substations - 60Yrs | O73: 0 | P73: ='[16]Hist Capex by Asset Class '!$P76 -> 0 | Q73: ='[17]Hist Capex by Asset Class '!$Q76 -> 0
B74: Transmission Substations - 45Yrs | C74: Transmission Substations - 45Yrs | D74: 34.77614834 | E74: 9.84739604 | F74: ='[16]Hist Capex by Asset Class '!$F74 -> 8.86909614 | G74: ='[17]Hist Capex by Asset Class '!$G74 -> 3.67023427 | M74: Transmission Substations - 45Yrs | O74: 0 | P74: ='[16]Hist Capex by Asset Class '!$P77 -> 0 | Q74: ='[17]Hist Capex by Asset Class '!$Q77 -> 0
B75: Transmission Substations - 15Yrs | C75: Transmission Substations - 15Yrs | D75: 4.20765474 | E75: 1.85117965 | F75: ='[16]Hist Capex by Asset Class '!$F75 -> 1.483993729 | G75: ='[17]Hist Capex by Asset Class '!$G75 -> 1.18530363 | M75: Transmission Substations - 15Yrs | O75: 0 | P75: ='[16]Hist Capex by Asset Class '!$P78 -> 0 | Q75: ='[17]Hist Capex by Asset Class '!$Q78 -> 0
B76: Protection And Control - 15Yrs | C76: Protection And Control - 15Yrs | D76: 23.12796553 | E76: 4.49289392 | F76: ='[16]Hist Capex by Asset Class '!$F76 -> 5.5248599 | G76: ='[17]Hist Capex by Asset Class '!$G76 -> 1.78220876 | M76: Protection And Control - 15Yrs | O76: 0 | P76: ='[16]Hist Capex by Asset Class '!$P79 -> 0 | Q76: ='[17]Hist Capex by Asset Class '!$Q79 -> 0
B77: Protection And Control - 4Yrs | C77: Protection And Control - 4Yrs | D77: 0 | E77: 0 | F77: ='[16]Hist Capex by Asset Class '!$F77 -> 0 | G77: ='[17]Hist Capex by Asset Class '!$G77 -> 0.16366426 | M77: Protection And Control - 4Yrs | O77: 0 | P77: ='[16]Hist Capex by Asset Class '!$P80 -> 0 | Q77: ='[17]Hist Capex by Asset Class '!$Q80 -> 0
B78: Transmission Operations - 10Yrs | C78: Transmission Operations - 10Yrs | D78: 1.10721722 | E78: 0.38758885 | F78: ='[16]Hist Capex by Asset Class '!$F78 -> 0.7906571891 | G78: ='[17]Hist Capex by Asset Class '!$G78 -> 8.755223516 | M78: Transmission Operations - 10Yrs | O78: 0 | P78: ='[16]Hist Capex by Asset Class '!$P81 -> 0 | Q78: ='[17]Hist Capex by Asset Class '!$Q81 -> 0
B79: Transmission Operations - 4Yrs | C79: Transmission Operations - 4Yrs | D79: 0.16535017 | E79: 0 | F79: ='[16]Hist Capex by Asset Class '!$F79 -> 0.43664076 | G79: ='[17]Hist Capex by Asset Class '!$G79 -> 1.321595032 | M79: Transmission Operations - 4Yrs | O79: 0 | P79: ='[16]Hist Capex by Asset Class '!$P82 -> 0 | Q79: ='[17]Hist Capex by Asset Class '!$Q82 -> 0
B80: Other - 40Yrs | C80: Other - 40Yrs | D80: 1.13356888 | E80: 0 | F80: ='[16]Hist Capex by Asset Class '!$F80 -> 0.1757987612 | G80: ='[17]Hist Capex by Asset Class '!$G80 -> 0.2262569388 | M80: Other - 40Yrs | O80: 0 | P80: ='[16]Hist Capex by Asset Class '!$P83 -> 0 | Q80: ='[17]Hist Capex by Asset Class '!$Q83 -> 0
B81: Other - 9Yrs | C81: Other - 9Yrs | D81: 0.59577569 | E81: 1.186468219 | F81: ='[16]Hist Capex by Asset Class '!$F81 -> 0.0980708819 | G81: ='[17]Hist Capex by Asset Class '!$G81 -> 0.5399893992 | M81: Other - 9Yrs | O81: 0 | P81: ='[16]Hist Capex by Asset Class '!$P84 -> 0 | Q81: ='[17]Hist Capex by Asset Class '!$Q84 -> 0
B82: Other - 4Yrs | C82: Other - 4Yrs | D82: 0 | E82: 3.045307046 | F82: ='[16]Hist Capex by Asset Class '!$F82 -> 0.8100549232 | G82: ='[17]Hist Capex by Asset Class '!$G82 -> 0.2498275409 | M82: Other - 4Yrs | O82: 0 | P82: ='[16]Hist Capex by Asset Class '!$P85 -> 0 | Q82: ='[17]Hist Capex by Asset Class '!$Q85 -> 0
B83: Communications - 45Yrs | C83: Communications - 45Yrs | D83: 0 | E83: 0 | F83: ='[16]Hist Capex by Asset Class '!$F83 -> 0 | G83: ='[17]Hist Capex by Asset Class '!$G83 -> 0.02218679 | M83: Communications - 45Yrs | O83: 0 | P83: ='[16]Hist Capex by Asset Class '!$P86 -> 0 | Q83: ='[17]Hist Capex by Asset Class '!$Q86 -> 0
B84: Communications - 10Yrs | C84: Communications - 10Yrs | D84: 0 | E84: 0 | F84: ='[16]Hist Capex by Asset Class '!$F84 -> 0 | G84: ='[17]Hist Capex by Asset Class '!$G84 -> 2.63062615 | M84: Communications - 10Yrs | O84: 0 | P84: ='[16]Hist Capex by Asset Class '!$P87 -> 0 | Q84: ='[17]Hist Capex by Asset Class '!$Q87 -> 0
B85: Communications - 5Yrs | C85: Communications - 5Yrs | D85: 0 | E85: 0 | F85: ='[16]Hist Capex by Asset Class '!$F85 -> 0 | G85: ='[17]Hist Capex by Asset Class '!$G85 -> 0 | M85: Communications - 5Yrs | O85: 0 | P85: ='[16]Hist Capex by Asset Class '!$P88 -> 0 | Q85: ='[17]Hist Capex by Asset Class '!$Q88 -> 0
B86: Land and Buildings | C86: Land and Buildings | D86: 0 | E86: 0 | F86: ='[16]Hist Capex by Asset Class '!$F86 -> 0.2789792 | G86: ='[17]Hist Capex by Asset Class '!$G86 -> 0 | M86: Land and Buildings | O86: 0 | P86: ='[16]Hist Capex by Asset Class '!$P89 -> 0 | Q86: ='[17]Hist Capex by Asset Class '!$Q89 -> 0
B87: Equity Raising | C87: Equity Raising | D87: 0 | E87: 0 | F87: ='[16]Hist Capex by Asset Class '!$F87 -> 0 | G87: ='[17]Hist Capex by Asset Class '!$G87 -> 0 | M87: Equity Raising | O87: 0 | P87: ='[16]Hist Capex by Asset Class '!$P90 -> 0 | Q87: ='[17]Hist Capex by Asset Class '!$Q90 -> 0
J88: Total Yrs 1-5 | K88: Total | T88: Total Yrs 1-5 | U88: Total
B89: Sub total | D89: =SUM(D70:D88) -> 123.5242921 | E89: =SUM(E70:E88) -> 31.09848986 | F89: =SUM(F70:F88) -> 24.92542011 | G89: =SUM(G70:G88) -> 27.73778586 | H89: 0 | I89: 0 | J89: =SUM(E89:I89) -> 83.76169584 | K89: =SUM(D89:I89) -> 207.2859879 | M89: Sub total | N89: =SUM(N70:N88) -> 0 | O89: =SUM(O70:O88) -> 0 | P89: =SUM(P70:P88) -> 0 | Q89: 0 | R89: =SUM(R70:R88) -> 0 | S89: =SUM(S70:S88) -> 0 | T89: =SUM(O89:S89) -> 0 | U89: =SUM(N89:S89) -> 0
A92: Notes: - Exclude half year rate of return. Inputs are assumed to be in middle of year terms because actual capex is reported evenly over a financial year. - The asset classes inputed by each TNSP must be the same as those used in the RFM/PTRM. - Yr -1 is the final year of the previous regulatory control period. - Capex should be adjusted for any movements in capitalised provisions and be net of customer contributions. Where relevant please note the amount of any customer contributions excluded. - Where capex related to Network Capability Incentive Parameter Action Plan (NCIPAP) projects has been incurred and reported across asset classes, the total amount for each project should be noted. | M92: Actual Gross NCIPAP Capital Expenditure – As Commissioned ($m Nominal)
N93: 2013-14 | O93: 2014-15 | P93: 2015-16 | Q93: 2016-17 | R93: 2017-18 | S93: 2018-19
M95: Weather Station refurbishment program | O95: 0 | P95: ='[16]Hist Capex by Asset Class '!$P$98 -> 0 | Q95: ='[17]Hist Capex by Asset Class '!$Q98 -> 0
M96: ND1346 George Town Automatic Voltage Control | O96: 0 | P96: ='[16]Hist Capex by Asset Class '!$P$98 -> 0 | Q96: ='[17]Hist Capex by Asset Class '!$Q99 -> 0
M97: ND1351 Implementation of dynamic rating | O97: 0 | P97: ='[16]Hist Capex by Asset Class '!$P$98 -> 0 | Q97: ='[17]Hist Capex by Asset Class '!$Q100 -> 0
M98: ND1363 TL Dead End Assembly Upgrade Prog Stg 2 | O98: 0 | P98: ='[16]Hist Capex by Asset Class '!$P$98 -> 0 | Q98: ='[17]Hist Capex by Asset Class '!$Q101 -> 0
M99: ND1364 Power Transformer Dynamic Rating Progra | O99: 0 | P99: ='[16]Hist Capex by Asset Class '!$P$98 -> 0 | Q99: ='[17]Hist Capex by Asset Class '!$Q102 -> 0
M100: ND1365 Line Fault Indicator Comms Program | O100: 0 | P100: ='[16]Hist Capex by Asset Class '!$P$98 -> 0 | Q100: ='[17]Hist Capex by Asset Class '!$Q103 -> 0
M101: ND1366 Sheffield Sub 220kV K and L Bay Upgrade | O101: 0 | P101: ='[16]Hist Capex by Asset Class '!$P$98 -> 0 | Q101: ='[17]Hist Capex by Asset Class '!$Q104 -> 0
M102: ND1367 Castle Forbes Bay Tee disconnector upgr | O102: 0 | P102: ='[16]Hist Capex by Asset Class '!$P$98 -> 0 | Q102: ='[17]Hist Capex by Asset Class '!$Q105 -> 0
A103: Actual Asset Disposal – As De-Commissioned ($m Nominal) | M103: ND1372 Modern fault location functionality | O103: 0 | P103: ='[16]Hist Capex by Asset Class '!$P$98 -> 0 | Q103: ='[17]Hist Capex by Asset Class '!$Q106 -> 0
D104: 2013-14 | E104: 2014-15 | F104: 2015-16 | G104: 2016-17 | H104: 2017-18 | I104: 2018-19 | M104: Sub total | N104: =SUM(N95:N103) -> 0 | O104: 0 | P104: 0 | Q104: 0 | R104: 0 | S104: 0 | T104: =SUM(O104:S104) -> 0 | U104: =SUM(N104:S104) -> 0
A105: Asset Class
B106: Insert asset class from RFM
B107: Insert asset class from RFM
B108: Insert asset class from RFM
B109: Insert asset class from RFM
B110: Insert asset class from RFM
B111: Insert asset class from RFM
B112: Insert asset class from RFM
B113: Insert asset class from RFM
B114: Insert asset class from RFM
B115: Insert asset class from RFM | J115: Total Yrs 1-5 | K115: Total
B116: Sub total | D116: =SUM(D106:D115) -> 0 | E116: 0 | F116: 0 | G116: 0 | H116: 0 | I116: 0 | J116: =SUM(E116:I116) -> 0 | K116: =SUM(D116:I116) -> 0
A118: Notes: - Exclude half year rate of return. Inputs are assumed to be in middle of year terms because actual disposal is reported evenly over a financial year. - The asset classes inputed by each TNSP must be the same as those used in the RFM/PTRM. - Yr -1 is the final year of the previous regulatory control period.

Sheet Hist Capex - Network
B2: HISTORIC CAPEX - NETWORK- by project
D6: Not Required - Duplicated in Category Analysis RIN
A14: $M nominal
F15: Yearly expenditure by project (inclusive of FDC)
A17: Project ID | B17: Project Description | C17: Commissioning Date | D17: Category^ | F17: Any Part Year | G17: Year 1 | H17: Year 2 | I17: Year 3 | J17: Year 4 | K17: Year 5 | L17: TOTAL | N17: REASON FOR PROJECT | O17: Reg Test / Business Case (Y/N) | P17: Reg Test / Business Case Cost Estimate | Q17: Reason for Variance from Cost Estimate / Expected Commissioning Date
F37: Subtotal
D39: ^refers to Categories (e.g Augmentation, Replacement, etc) as defined in “Historic Capex Instructions” worksheet | J39: *Note that values in these columns are estimates only

Sheet Hist Capex - Non-Network
B2: HISTORIC CAPEX - NON-NETWORK- by project
A14: $M nominal
F15: Yearly expenditure by project (inclusive of FDC)
A17: Project ID | B17: Project Description | C17: Commissioning Date | D17: Category^ | F17: Any Part Year | G17: 2014-15 | H17: 2015-16 | I17: 2016-17 | J17: 2017-18 | K17: 2018-19 | L17: TOTAL | N17: REASON FOR PROJECT | O17: Reg Test / Business Case (Y/N) | P17: Reg Test / Business Case Cost Estimate | Q17: Reason for Variance from Cost Estimate / Expected Commissioning Date
A18: ND1348 | B18: Maria Street Accomodation | D18: Business Support | G18: ='[16]Hist Capex - Non-Network'!$G18 -> 0.3818300434 | H18: ='[16]Hist Capex - Non-Network'!$H18 -> 0 | I18: ='[11]Hist Capex - Non-Network'!$I18 -> 0.02047469212 | L18: =SUM(F18:K18) -> 0.4023047355
A19: - | B19: Fleet | D19: Business Support | G19: ='[16]Hist Capex - Non-Network'!$G19 -> 0.6723852852 | H19: ='[16]Hist Capex - Non-Network'!$H19 -> 0.6267953631 | I19: ='[11]Hist Capex - Non-Network'!$I19 -> 0.6544342092 | L19: =SUM(F19:K19) -> 1.953614857
A20: - | B20: Rocherlea Accomodation Upgrade | D20: Business Support | G20: ='[16]Hist Capex - Non-Network'!$G20 -> 0 | H20: ='[16]Hist Capex - Non-Network'!$H20 -> 0.2419023755 | I20: ='[11]Hist Capex - Non-Network'!$I20 -> 0.0584799339 | L20: 0.3003823094
A21: Various | B21: Business Support Projects < $250,000 | D21: Business Support | G21: ='[16]Hist Capex - Non-Network'!$G21 -> 0.204902 | H21: ='[16]Hist Capex - Non-Network'!$H21 -> 0.2476781841 | I21: ='[11]Hist Capex - Non-Network'!$I21 -> 0.8594264679 | L21: 1.312006652
A24: - | B24: Ajilis | D24: Information Technology | G24: ='[16]Hist Capex - Non-Network'!$G24 -> 0.4467791388 | H24: ='[16]Hist Capex - Non-Network'!$H24 -> 3.522696465 | I24: ='[11]Hist Capex - Non-Network'!$I24 -> 5.025343978 | L24: 8.994819581
A25: M/225591 | B25: 176153 Data Centre - Remediation | D25: Information Technology | G25: ='[16]Hist Capex - Non-Network'!$G25 -> 0.2428092158 | H25: ='[16]Hist Capex - Non-Network'!$H25 -> 0.0024283565 | I25: ='[11]Hist Capex - Non-Network'!$I25 -> 0 | L25: 0.2452375723
A26: Various | B26: Business Support Projects < $250,000 | D26: Information Technology | G26: ='[16]Hist Capex - Non-Network'!$G26 -> 1.228878 | H26: ='[16]Hist Capex - Non-Network'!$H26 -> 0.7098442575 | I26: ='[11]Hist Capex - Non-Network'!$I26 -> 3.428457074 | L26: 5.367179332
F29: Subtotal | G29: =SUM(G18:G28) -> 3.177583683 | H29: =SUM(H18:H28) -> 5.351345001 | I29: 10.04661636 | J29: 0 | K29: 0 | L29: 18.57554504
D31: ^refers to Categories (e.g Augmentation, Replacement, etc) as defined in “Historic Capex Instructions” worksheet | J31: *Note that values in these columns are estimates only

Sheet DRS
A1: Directors Responsibility Statement
A3: In the opinion of the directors of Tasmanian Networks Pty Ltd:
A5: ● | B5: The regulatory financial statements and other statements, schedules and work papers set out on pages 1 to 24 are drawn up to present fairly as required by the Australian Energy Regulator's (AER's) Transmission Network Service Providers Information Guideline issued April 2015, including:
B7: ● | C7: The results of each business segment for the regulatory accounting period ended 30 June 2017.
B9: ● | C9: Information concerning the state of affairs at 30 June 2017, of each business segment.
A11: ● | B11: No related party transactions arose during the regulatory accounting period that require disclosure under paragraph 4.14 of the guideline.
A13: ● | B13: No third party benefit transactions arose during the regulatory accounting period that require disclosure under paragraph 4.15 of the guideline.
A15: ● | B15: No financing transactions arose during the regulatory accounting period that requires disclosure under paragraph 4.16 of the guideline.
A17: The terms and definitions used in this statement accord with the definitions set out in the AER's Transmission Network Service Provider Information Guideline referred to above.
A19: Signed in accordance with a resolution of directors:
A26: _________________________ | D26: _______________________
A27: Dr Dan Norton AO | D27: Ms Joanne Doyle
A29: 25 October 2017 | D29: 25 October 2017

Sheet Sheet1
